[Event "95th Caplin Hastings Congress"]
[Site "Hastings"]
[Date "2020.01.02"]
[Round "6.48"]
[White "McNally, Richard J E"]
[Black "Kumar, Soham"]
[Result "0-1"]
[ECO "D00"]
[WhiteElo "1967"]
[BlackElo "1512"]
[Annotator "NA"]
[PlyCount "121"]
[EventDate "2019.12.28"]
[EventType "swiss"]
[EventCountry "ENG"]
[SourceTitle "playchess.com"]
[Source "ChessBase"]
[SourceQuality "1"]
[TimeControl "40/6600+30:3000+30"]

1. d4 {[%emt 0:09:40]} Nf6 {[%emt 0:09:41]} 2. f3 {[%emt 0:00:25]} d5 {[%emt 0:00:12]} 3. e4 {[%emt 0:00:19]} dxe4 {[%emt 0:01:05]} 4. Nc3 {[%emt 0:00:25]} e3 {[%emt 0:01:22]} 5. Bxe3 {[%emt 0:00:24]} Bf5 {[%emt 0:01:07]} 6. Nge2 {[%emt 0:03:31]} e6 {[%emt 0:01:26]} 7. g4 {[%emt 0:01:10]} Bg6 {[%emt 0:00:13]} 8. h4 {[%emt 0:01:17]} h5 {[%emt 0:00:50]} 9. Nf4 {[%emt 0:01:55]} Bh7 {[%emt 0:09:40]} 10. g5 {[%emt 0:01:00]} Nfd7 {[%emt 0:00:17]} 11. g6 {[%emt 0:05:01]} Bxg6 {[%emt 0:00:57]} 12. Nxg6 {[%emt 0:00:20]} fxg6 {[%emt 0:00:19]} 13. Bd3 {[%emt 0:02:43]} Qf6 {[%emt 0:04:17]} 14. Bg5 {[%emt 0:06:55]} Qf7 {[%emt 0:00:27]} 15. Qe2 {[%emt 0:02:00]} Bd6 {[%emt 0:03:53]} 16. Rg1 {[%emt 0:06:28]} O-O {[%emt 0:02:16]} 17. O-O-O {[%emt 0:02:37]} Nc6 {[%emt 0:01:29]} 18. Bc4 {[%emt 0:04:01]} Rfe8 {[%emt 0:03:39]} 19. d5 {[%emt 0:02:55]} Nd8 {[%emt 0:09:42]} 20. Bxd8 {[%emt 0:01:28]} Rexd8 {[%emt 0:00:22]} 21. dxe6 {[%emt 0:00:34]} Qf4+ {[%emt 0:00:08]} 22. Kb1 {[%emt 0:00:45]} Ne5 {[%emt 0:00:29]} 23. e7+ {[%emt 0:01:22]} Qxc4 {[%emt 0:00:38]} 24. Qxc4+ {[%emt 0:00:58]} Nxc4 {[%emt 0:00:06]} 25. exd8=Q+ {[%emt 0:00:39]} Rxd8 {[%emt 0:00:26]} 26. Ne4 {[%emt 0:02:11]} Rf8 {[%emt 0:01:34]} 27. Nxd6 {[%emt 0:01:09]} Nxd6 {[%emt 0:00:08]} 28. Rxg6 {[%emt 0:01:14]} Rf7 {[%emt 0:00:13]} 29. f4 Rxf4 {[%emt 0:00:30]} 30. Rg5 {[%emt 0:02:05]} Rf5 {[%emt 0:02:16]} 31. Rdg1 {[%emt 0:01:57]} Rf7 {[%emt 0:04:30]} 32. Rxh5 {[%emt 0:01:31]} Nc4 {[%emt 0:00:49]} 33. b3 {[%emt 0:01:57]} Nd2+ {[%emt 0:00:30]} 34. Kb2 {[%emt 0:00:33]} Ne4 {[%emt 0:01:01]} 35. Re1 {[%emt 0:01:34]} Nf6 {[%emt 0:00:16]} 36. Rhe5 {[%emt 0:01:17]} c6 {[%emt 0:02:22]} 37. Re7 {[%emt 0:00:41]} Nd7 {[%emt 0:00:46]} 38. Rxf7 {[%emt 0:00:39]} Kxf7 {[%emt 0:00:08]} 39. c4 {[%emt 0:01:47]} Kf6 {[%emt 0:01:21]} 40. Rf1+ {[%emt 0:01:46]} Ke6 {[%emt 0:00:49]} 41. Kc3 {[%emt 0:50:47]} Ne5 {[%emt 0:50:48]} 42. Kd4 {[%emt 0:01:24]} Ng6 {[%emt 0:00:33]} 43. h5 {[%emt 0:01:21]} Ne7 {[%emt 0:00:12]} 44. Re1+ {[%emt 0:09:40]} Kf6 {[%emt 0:00:17]} 45. Kc5 {[%emt 0:03:38]} Nf5 {[%emt 0:00:26]} 46. Rg1 {[%emt 0:00:31]} Kf7 {[%emt 0:03:06]} 47. Rg6 {[%emt 0:02:12]} Ke7 {[%emt 0:01:05]} 48. a4 {[%emt 0:02:57]} Kf7 {[%emt 0:06:15]} 49. a5 {[%emt 0:00:34]} Ne7 {[%emt 0:00:18]} 50. a6 {[%emt 0:04:34]} b6+ {[%emt 0:00:31]} 51. Kd6 {[%emt 0:00:26]} Nxg6 {[%emt 0:01:18]} 52. hxg6+ {[%emt 0:00:11]} Kxg6 {[%emt 0:00:23]} 53. Kxc6 {[%emt 0:00:14]} Kf5 {[%emt 0:00:05]} 54. Kb7 {[%emt 0:00:20]} g5 {[%emt 0:00:07]} 55. Kxa7 {[%emt 0:00:14]} g4 {[%emt 0:00:06]} 56. Kxb6 {[%emt 0:00:24]} g3 {[%emt 0:00:05]} 57. a7 {[%emt 0:00:11]} g2 {[%emt 0:00:04]} 58. a8=Q {[%emt 0:00:24]} g1=Q+ {[%emt 0:00:08]} 59. c5 {[%emt 0:00:43]} Qg6+ {[%emt 0:00:16]} 60. Qc6 {[%emt 0:01:40]} Qg3 {[%emt 0:00:19]} 61. Qd5+ {[%emt 0:00:51] Ke5} 0-1

[Event "95th Caplin Hastings Congress"]
[Site "Hastings"]
[Date "2020.01.02"]
[Round "6.49"]
[White "Thatte, Nandinee"]
[Black "Barton, R Alan"]
[Result "0-1"]
[ECO "A53"]
[WhiteElo "1270"]
[BlackElo "1945"]
[Annotator "NA"]
[PlyCount "128"]
[EventDate "2019.12.28"]
[EventType "swiss"]
[EventCountry "ENG"]
[SourceTitle "playchess.com"]
[Source "ChessBase"]
[SourceQuality "1"]
[TimeControl "40/6600+30:3000+30"]

1. d4 {[%emt 0:09:33]} d6 {[%emt 0:11:30]} 2. c4 {[%emt 0:00:52]} Nf6 {[%emt 0:04:12]} 3. Nc3 {[%emt 0:00:21]} Nbd7 {[%emt 0:03:15]} 4. e4 {[%emt 0:00:47]} e5 {[%emt 0:00:03]} 5. d5 {[%emt 0:00:21]} Be7 {[%emt 0:00:27]} 6. Nf3 {[%emt 0:08:11]} Nc5 {[%emt 0:02:55]} 7. Qc2 {[%emt 0:02:12]} a5 {[%emt 0:00:05]} 8. Be2 {[%emt 0:01:22]} O-O {[%emt 0:03:45]} 9. O-O {[%emt 0:00:15]} Ne8 {[%emt 0:01:56]} 10. Be3 {[%emt 0:04:05]} b6 {[%emt 0:00:33]} 11. a3 {[%emt 0:11:28]} f5 {[%emt 0:04:18]} 12. Bxc5 {[%emt 0:11:07]} bxc5 {[%emt 0:00:05]} 13. exf5 {[%emt 0:08:25]} Bxf5 {[%emt 0:00:05]} 14. Bd3 {[%emt 0:03:07]} g6 {[%emt 0:01:34]} 15. Nd2 {[%emt 0:07:05]} Ng7 {[%emt 0:02:34]} 16. Nde4 {[%emt 0:08:23]} Bd7 {[%emt 0:08:40]} 17. Ne2 {[%emt 0:06:00]} Nh5 {[%emt 0:04:18]} 18. N2g3 {[%emt 0:08:10]} Nf4 {[%emt 0:01:54]} 19. Ne2 {[%emt 0:02:41]} Qe8 {[%emt 0:06:26]} 20. Qc3 {[%emt 0:02:51]} a4 {[%emt 0:08:29]} 21. Rfe1 {[%emt 0:02:50]} Nxd3 {[%emt 0:04:18]} 22. Qxd3 {[%emt 0:00:20]} Rb8 {[%emt 0:00:25]} 23. Rab1 {[%emt 0:02:17]} Rb3 {[%emt 0:05:56]} 24. Qd2 {[%emt 0:02:10]} Qf7 {[%emt 0:02:39]} 25. Nc1 {[%emt 0:00:48]} Rb6 {[%emt 0:03:32]} 26. Nd3 {[%emt 0:00:20]} Bf6 {[%emt 0:06:34]} 27. Qc2 {[%emt 0:02:15]} Bh4 {[%emt 0:04:29]} 28. Rf1 {[%emt 0:02:44]} Bf5 {[%emt 0:02:40]} 29. Rfe1 {[%emt 0:02:59]} Rb3 {[%emt 0:02:35]} 30. Re2 {[%emt 0:03:38]} Qd7 {[%emt 0:10:20]} 31. Rf1 {[%emt 0:02:15]} c6 {[%emt 0:02:39]} 32. Qd2 {[%emt 0:01:33]} cxd5 {[%emt 0:00:30]} 33. Ndxc5 {[%emt 0:00:28]} dxc5 {[%emt 0:02:59]} 34. Nxc5 {[%emt 0:00:11]} Qd6 {[%emt 0:01:11]} 35. Nxb3 {[%emt 0:00:17]} axb3 {[%emt 0:00:07]} 36. cxd5 {[%emt 0:00:41]} Rd8 {[%emt 0:02:53]} 37. Rd1 {[%emt 0:01:39]} Bc2 {[%emt 0:01:08]} 38. Rde1 {[%emt 0:02:18]} Qxd5 {[%emt 0:03:54]} 39. Qc3 {[%emt 0:01:13]} e4 {[%emt 0:01:15]} 40. Re3 {[%emt 0:01:16]} Rf8 {[%emt 0:01:19]} 41. R3e2 {[%emt 0:03:01]} Bf6 {[%emt 0:03:54]} 42. Qb4 {[%emt 0:00:57]} Qd4 {[%emt 0:04:58]} 43. Qb7 {[%emt 0:02:46]} Qxb2 {[%emt 0:03:03]} 44. a4 {[%emt 0:00:37]} Qc3 {[%emt 0:03:13]} 45. Rc1 {[%emt 0:01:53]} Qd3 {[%emt 0:02:18]} 46. Re3 {[%emt 0:00:56]} Qd2 {[%emt 0:03:16]} 47. Rce1 {[%emt 0:00:45]} Rd8 {[%emt 0:05:14]} 48. h3 {[%emt 0:00:31]} Qd5 {[%emt 0:01:59]} 49. Qc7 {[%emt 0:02:34]} Be5 {[%emt 0:02:35]} 50. Qb6 {[%emt 0:03:39]} Bd4 {[%emt 0:01:22]} 51. Qb4 {[%emt 0:00:42]} Bxe3 {[%emt 0:00:47]} 52. Rxe3 {[%emt 0:06:44]} Qd1+ {[%emt 0:00:06]} 53. Kh2 {[%emt 0:00:17]} Qd6+ {[%emt 0:00:36]} 54. Qxd6 {[%emt 0:00:09]} Rxd6 {[%emt 0:00:07]} 55. Rc3 {[%emt 0:00:16]} b2 {[%emt 0:01:28]} 56. Rxc2 {[%emt 0:00:13]} b1=Q {[%emt 0:00:27]} 57. Rc8+ {[%emt 0:00:06]} Kg7 {[%emt 0:00:59]} 58. Rc7+ {[%emt 0:00:16]} Kh6 {[%emt 0:00:22]} 59. Rf7 {[%emt 0:00:16]} Qb8 {[%emt 0:01:14]} 60. g3 {[%emt 0:00:12]} e3 {[%emt 0:00:48]} 61. fxe3 {[%emt 0:00:16]} Rd2+ {[%emt 0:01:01]} 62. Kg1 {[%emt 0:00:12]} Qxg3+ {[%emt 0:00:38]} 63. Kf1 {[%emt 0:00:03]} Qg2+ {[%emt 0:01:08]} 64. Ke1 {[%emt 0:00:05]} Qe2# {[%emt 0:01:21]} 0-1

[Event "95th Caplin Hastings Congress"]
[Site "Hastings"]
[Date "2020.01.02"]
[Round "6.50"]
[White "Varney, Zoe"]
[Black "Kumar, Sanjit S"]
[Result "1-0"]
[ECO "C58"]
[WhiteElo "2004"]
[BlackElo "1501"]
[Annotator "NA"]
[PlyCount "73"]
[EventDate "2019.12.28"]
[EventType "swiss"]
[EventCountry "ENG"]
[SourceTitle "playchess.com"]
[Source "ChessBase"]
[SourceQuality "1"]
[TimeControl "40/6600+30:3000+30"]

1. e4 {[%emt 0:09:31]} e5 {[%emt 0:09:37]} 2. Nf3 {[%emt 0:00:09]} Nc6 {[%emt 0:00:08]} 3. Bc4 {[%emt 0:00:07]} Nf6 {[%emt 0:00:11]} 4. Ng5 {[%emt 0:00:16]} d5 {[%emt 0:00:09]} 5. exd5 {[%emt 0:00:08]} Na5 {[%emt 0:00:08]} 6. Bb5+ {[%emt 0:00:04]} c6 {[%emt 0:00:10]} 7. dxc6 {[%emt 0:00:05]} bxc6 {[%emt 0:00:09]} 8. Bd3 {[%emt 0:00:06]} Nd5 {[%emt 0:00:46]} 9. Nf3 {[%emt 0:00:11]} Bd6 {[%emt 0:00:14]} 10. O-O {[%emt 0:01:50]} Nf4 {[%emt 0:02:24]} 11. Re1 {[%emt 0:03:02]} Bg4 {[%emt 0:11:18]} 12. h3 {[%emt 0:20:42]} Bh5 {[%emt 0:06:38]} 13. Bf1 {[%emt 0:01:43]} Qf6 {[%emt 0:14:18]} 14. g4 {[%emt 0:05:30]} Bg6 {[%emt 0:00:50]} 15. d4 {[%emt 0:10:11]} O-O {[%emt 0:10:39]} 16. dxe5 {[%emt 0:03:30]} Qe7 {[%emt 0:06:11]} 17. Qxd6 {[%emt 0:06:24]} Qxd6 {[%emt 0:00:13]} 18. exd6 {[%emt 0:00:03]} Nd5 {[%emt 0:00:06]} 19. Bd2 {[%emt 0:01:46]} Nb7 {[%emt 0:00:12]} 20. c4 {[%emt 0:00:47]} Nf6 {[%emt 0:00:19]} 21. Ne5 {[%emt 0:02:58]} Rac8 {[%emt 0:01:46]} 22. g5 {[%emt 0:03:01]} Ne4 {[%emt 0:01:13]} 23. Nxg6 {[%emt 0:00:17]} Nxd2 {[%emt 0:00:05]} 24. Ne7+ {[%emt 0:00:43]} Kh8 {[%emt 0:00:05]} 25. Nxd2 {[%emt 0:00:05]} Rcd8 {[%emt 0:00:14]} 26. Ne4 {[%emt 0:00:54]} c5 {[%emt 0:00:40]} 27. Rad1 {[%emt 0:00:28]} Rd7 {[%emt 0:00:35]} 28. Nc6 {[%emt 0:01:06]} a6 {[%emt 0:00:51]} 29. h4 {[%emt 0:01:03]} Rc8 {[%emt 0:00:43]} 30. Bh3 {[%emt 0:00:40]} Rcd8 {[%emt 0:00:24]} 31. Bxd7 {[%emt 0:00:13]} Rxd7 {[%emt 0:00:06]} 32. Nxc5 {[%emt 0:00:05]} g6 {[%emt 0:00:22]} 33. Nxd7 {[%emt 0:00:11]} Kg7 {[%emt 0:00:20]} 34. Nf6 {[%emt 0:00:08]} h6 {[%emt 0:00:24]} 35. Re8 {[%emt 0:00:07]} hxg5 {[%emt 0:00:06]} 36. hxg5 {[%emt 0:00:04]} Nc5 {[%emt 0:00:31]} 37. Rg8# {[%emt 0:00:06]} 1-0

[Event "95th Caplin Hastings Congress"]
[Site "Hastings"]
[Date "2020.01.02"]
[Round "6.51"]
[White "Brouwer, Willem"]
[Black "Ortiz Sanchez, Luis"]
[Result "1/2-1/2"]
[ECO "A87"]
[WhiteElo "1662"]
[BlackElo "1947"]
[Annotator "NA"]
[PlyCount "95"]
[EventDate "2019.12.28"]
[EventType "swiss"]
[EventCountry "ENG"]
[SourceTitle "playchess.com"]
[Source "ChessBase"]
[SourceQuality "1"]
[TimeControl "40/6600+30:3000+30"]

1. Nf3 {[%emt 0:10:12]} f5 {[%emt 0:09:45]} 2. c4 {[%emt 0:00:20]} Nf6 {[%emt 0:00:08]} 3. g3 {[%emt 0:00:29]} g6 {[%emt 0:00:11]} 4. b3 {[%emt 0:00:19]} Bg7 {[%emt 0:00:20]} 5. Bb2 {[%emt 0:00:11]} d6 {[%emt 0:00:38]} 6. d4 {[%emt 0:02:47]} O-O {[%emt 0:00:57]} 7. Bg2 {[%emt 0:00:33]} c6 {[%emt 0:00:43]} 8. O-O {[%emt 0:05:03]} Qc7 {[%emt 0:05:15]} 9. Nbd2 {[%emt 0:05:44]} e6 {[%emt 0:24:55]} 10. Re1 {[%emt 0:16:42]} Ne4 {[%emt 0:01:05]} 11. Nxe4 {[%emt 0:20:52]} fxe4 {[%emt 0:00:05]} 12. Nd2 {[%emt 0:01:28]} d5 {[%emt 0:01:23]} 13. f4 {[%emt 0:00:57]} Nd7 {[%emt 0:06:24]} 14. Qc2 {[%emt 0:04:22]} Nf6 {[%emt 0:01:14]} 15. Nf1 {[%emt 0:00:55]} Qf7 {[%emt 0:01:09]} 16. e3 {[%emt 0:01:12]} Bd7 {[%emt 0:01:34]} 17. Ba3 {[%emt 0:02:35]} Rfc8 {[%emt 0:00:28]} 18. Rac1 {[%emt 0:01:55]} h6 {[%emt 0:03:40]} 19. Qe2 {[%emt 0:08:41]} Kh8 {[%emt 0:02:45]} 20. Kh1 {[%emt 0:03:34]} Nh7 {[%emt 0:02:08]} 21. h3 {[%emt 0:05:33]} Rg8 {[%emt 0:02:13]} 22. Nh2 {[%emt 0:00:29]} Nf6 {[%emt 0:01:05]} 23. Ng4 {[%emt 0:00:31]} Nxg4 {[%emt 0:00:08]} 24. hxg4 {[%emt 0:01:19]} Bf8 {[%emt 0:01:23]} 25. Bxf8 {[%emt 0:02:03]} Raxf8 {[%emt 0:00:07]} 26. Rf1 {[%emt 0:01:03]} Qh7 {[%emt 0:00:19]} 27. Bh3 {[%emt 0:02:38]} Rf7 {[%emt 0:01:48]} 28. Rf2 {[%emt 0:00:32]} Rgf8 {[%emt 0:00:13]} 29. Rcf1 {[%emt 0:01:19]} Rf6 {[%emt 0:02:03]} 30. g5 {[%emt 0:08:43]} R6f7 {[%emt 0:02:39]} 31. gxh6 {[%emt 0:00:54]} Qxh6 {[%emt 0:00:26]} 32. Rh2 {[%emt 0:00:32]} Rh7 {[%emt 0:00:44]} 33. Bg4 {[%emt 0:06:03]} Qg7 {[%emt 0:03:38]} 34. Rff2 {[%emt 0:02:17]} Kg8 {[%emt 0:02:12]} 35. Rxh7 {[%emt 0:00:51]} Qxh7+ {[%emt 0:00:04]} 36. Rh2 {[%emt 0:00:12]} Qg7 {[%emt 0:00:05]} 37. Rh3 {[%emt 0:02:25]} Rc8 {[%emt 0:02:19]} 38. c5 {[%emt 0:00:20]} Rf8 {[%emt 0:02:06]} 39. Qh2 {[%emt 0:00:32]} Rf7 {[%emt 0:02:25]} 40. Rh6 {[%emt 0:00:18]} Qxh6 {[%emt 0:00:15]} 41. Qxh6 {[%emt 0:50:08]} Rh7 {[%emt 0:50:03]} 42. Qxh7+ {[%emt 0:00:29]} Kxh7 {[%emt 0:00:04]} 43. Kh2 {[%emt 0:00:16]} Kg7 {[%emt 0:02:40]} 44. Kh3 {[%emt 0:00:00]} Kf7 {[%emt 0:00:00]} 45. Kh4 {[%emt 0:00:00]} Kf6 {[%emt 0:00:00]} 46. Kh3 {[%emt 0:00:00]} Ke7 {[%emt 0:00:00]} 47. Kh4 {[%emt 0:00:00]} Kf6 {[%emt 0:00:00]} 48. Kh3 {[%emt 0:00:00]} 1/2-1/2

[Event "95th Caplin Hastings Congress"]
[Site "Hastings"]
[Date "2020.01.02"]
[Round "6.52"]
[White "Khoo-Thwe, Louis"]
[Black "Flynn, David"]
[Result "1/2-1/2"]
[ECO "C06"]
[WhiteElo "1690"]
[BlackElo "1853"]
[Annotator "NA"]
[PlyCount "88"]
[EventDate "2019.12.28"]
[EventType "swiss"]
[EventCountry "ENG"]
[SourceTitle "playchess.com"]
[Source "ChessBase"]
[SourceQuality "1"]
[TimeControl "40/6600+30:3000+30"]

1. e4 {[%emt 0:09:32]} e6 {[%emt 0:15:39]} 2. d4 {[%emt 0:00:08]} d5 {[%emt 0:00:10]} 3. Nd2 {[%emt 0:00:06]} Nf6 {[%emt 0:00:28]} 4. e5 {[%emt 0:00:07]} Nfd7 {[%emt 0:00:05]} 5. Bd3 {[%emt 0:00:06]} c5 {[%emt 0:00:05]} 6. c3 {[%emt 0:00:05]} Nc6 {[%emt 0:00:06]} 7. Ne2 {[%emt 0:00:14]} cxd4 {[%emt 0:00:15]} 8. cxd4 {[%emt 0:00:07]} f6 {[%emt 0:00:05]} 9. f4 {[%emt 0:00:34]} f5 {[%emt 0:21:38]} 10. Nf3 {[%emt 0:01:56]} Qb6 {[%emt 0:02:24]} 11. a3 {[%emt 0:01:17]} a5 {[%emt 0:02:19]} 12. Qc2 {[%emt 0:04:21]} Ndb8 {[%emt 0:07:21]} 13. Nc3 {[%emt 0:06:46]} Be7 {[%emt 0:23:41]} 14. Na4 {[%emt 0:02:52]} Qd8 {[%emt 0:00:31]} 15. Qb3 {[%emt 0:02:00]} Nd7 {[%emt 0:00:36]} 16. Be3 {[%emt 0:02:32]} O-O {[%emt 0:02:38]} 17. Rc1 {[%emt 0:01:24]} Rb8 {[%emt 0:08:01]} 18. O-O {[%emt 0:05:42]} Na7 {[%emt 0:00:45]} 19. Bb5 {[%emt 0:01:12]} Nb6 {[%emt 0:01:25]} 20. Nc5 {[%emt 0:03:02]} Nxb5 {[%emt 0:03:06]} 21. Qxb5 {[%emt 0:00:09]} Nc4 {[%emt 0:00:50]} 22. Rxc4 {[%emt 0:04:00]} dxc4 {[%emt 0:00:35]} 23. Qxc4 {[%emt 0:00:05]} Bxc5 {[%emt 0:05:55]} 24. dxc5 {[%emt 0:00:17]} h6 {[%emt 0:02:39]} 25. Nd4 {[%emt 0:00:21]} Qe7 {[%emt 0:04:07]} 26. Nb5 {[%emt 0:01:51]} Bd7 {[%emt 0:00:59]} 27. Nd6 {[%emt 0:00:37]} Bc6 {[%emt 0:00:12]} 28. Rd1 {[%emt 0:00:55]} Bd5 {[%emt 0:01:51]} 29. Rxd5 {[%emt 0:01:05]} exd5 {[%emt 0:00:09]} 30. Qxd5+ {[%emt 0:00:05]} Kh7 {[%emt 0:00:42]} 31. g3 {[%emt 0:08:36]} g5 {[%emt 0:04:06]} 32. Kf2 {[%emt 0:05:06]} gxf4 {[%emt 0:00:19]} 33. Bxf4 {[%emt 0:00:06]} Qg7 {[%emt 0:02:12]} 34. h3 {[%emt 0:02:16]} h5 {[%emt 0:00:22]} 35. h4 {[%emt 0:01:25]} Qg4 {[%emt 0:02:24]} 36. Qe6 {[%emt 0:01:34]} Qd1 {[%emt 0:05:11]} 37. Qh6+ {[%emt 0:00:10]} Kg8 {[%emt 0:00:05]} 38. Qg6+ {[%emt 0:00:06]} Kh8 {[%emt 0:00:08]} 39. Qh6+ {[%emt 0:06:05]} Kg8 {[%emt 0:00:04]} 40. Qg6+ {[%emt 0:00:10]} Kh8 {[%emt 0:00:08]} 41. Bh6 {[%emt 0:00:03]} Qc2+ {[%emt 0:00:07]} 42. Kg1 {[%emt 0:00:02]} Qd1+ {[%emt 0:00:02]} 43. Kh2 {[%emt 0:00:03]} Qe2+ 44. Kh3 {[%emt 0:51:52]} Qf1+ {[%emt 0:53:32]} 1/2-1/2

[Event "95th Caplin Hastings Congress"]
[Site "Hastings"]
[Date "2020.01.02"]
[Round "6.53"]
[White "Gisbert Mir, Alejandro"]
[Black "Zheng, Jerry Z"]
[Result "1/2-1/2"]
[ECO "A29"]
[WhiteElo "1835"]
[BlackElo "1565"]
[Annotator "NA"]
[PlyCount "63"]
[EventDate "2019.12.28"]
[EventType "swiss"]
[EventCountry "ENG"]
[SourceTitle "playchess.com"]
[Source "ChessBase"]
[SourceQuality "1"]
[TimeControl "40/6600+30:3000+30"]

1. c4 {[%emt 0:09:48]} e5 {[%emt 0:09:42]} 2. Nc3 {[%emt 0:00:08]} Nf6 {[%emt 0:00:10]} 3. Nf3 {[%emt 0:01:44]} Nc6 {[%emt 0:00:49]} 4. d3 {[%emt 0:00:08]} d5 {[%emt 0:00:14]} 5. cxd5 {[%emt 0:00:14]} Nxd5 {[%emt 0:00:14]} 6. g3 {[%emt 0:00:12]} Be7 {[%emt 0:00:32]} 7. Bg2 {[%emt 0:00:06]} Nb6 {[%emt 0:00:16]} 8. O-O {[%emt 0:00:10]} Be6 {[%emt 0:00:21]} 9. Be3 {[%emt 0:01:45]} O-O {[%emt 0:02:08]} 10. a3 {[%emt 0:00:31]} f5 {[%emt 0:10:37]} 11. Qd2 {[%emt 0:05:12]} h6 {[%emt 0:17:17]} 12. h4 {[%emt 0:07:33]} Bf6 {[%emt 0:01:48]} 13. Rac1 {[%emt 0:10:47]} Nd4 {[%emt 0:12:48]} 14. Bxd4 {[%emt 0:01:49]} exd4 {[%emt 0:00:10]} 15. Nd1 {[%emt 0:02:12]} Qe7 {[%emt 0:03:24]} 16. e4 {[%emt 0:04:05]} dxe3 {[%emt 0:04:35]} 17. Qxe3 {[%emt 0:05:48]} c6 {[%emt 0:02:06]} 18. Re1 {[%emt 0:00:58]} Rfe8 {[%emt 0:01:11]} 19. Nc3 {[%emt 0:04:40]} Rad8 {[%emt 0:04:53]} 20. Rcd1 {[%emt 0:01:56]} Qd7 {[%emt 0:05:00]} 21. Qc5 {[%emt 0:05:52]} Bb3 {[%emt 0:06:22]} 22. Rxe8+ {[%emt 0:03:33]} Rxe8 {[%emt 0:00:19]} 23. Re1 {[%emt 0:00:14]} Rxe1+ {[%emt 0:08:11]} 24. Nxe1 {[%emt 0:00:02]} Nd5 {[%emt 0:03:15]} 25. Bxd5+ {[%emt 0:06:23]} Bxd5 {[%emt 0:00:12]} 26. Nxd5 {[%emt 0:01:35]} Qxd5 {[%emt 0:00:53]} 27. Qxa7 {[%emt 0:01:49]} Qe5 {[%emt 0:02:08]} 28. Nf3 {[%emt 0:07:28]} Qxb2 {[%emt 0:01:46]} 29. Kg2 {[%emt 0:04:41]} Qb5 {[%emt 0:09:28]} 30. Qe3 {[%emt 0:02:19]} Qa5 {[%emt 0:02:01]} 31. Qe8+ {[%emt 0:20:58]} Kh7 {[%emt 0:00:16]} 32. Ng5+ {[%emt 0:02:38]} 1/2-1/2

[Event "95th Caplin Hastings Congress"]
[Site "Hastings"]
[Date "2020.01.02"]
[Round "6.54"]
[White "Butt, Laurence"]
[Black "Ratnesan, Radha"]
[Result "1-0"]
[ECO "A46"]
[WhiteElo "1694"]
[BlackElo "1477"]
[Annotator "NA"]
[PlyCount "107"]
[EventDate "2019.12.28"]
[EventType "swiss"]
[EventCountry "ENG"]
[SourceTitle "playchess.com"]
[Source "ChessBase"]
[SourceQuality "1"]
[TimeControl "40/6600+30:3000+30"]

1. d4 {[%emt 0:10:00]} Nf6 {[%emt 0:16:36]} 2. Bg5 {[%emt 0:01:12]} e6 {[%emt 0:01:33]} 3. e4 {[%emt 0:00:24]} h6 {[%emt 0:01:11]} 4. Bxf6 {[%emt 0:00:15]} Qxf6 {[%emt 0:01:19]} 5. e5 {[%emt 0:00:37]} Qd8 {[%emt 0:01:23]} 6. Nf3 {[%emt 0:00:40]} d5 {[%emt 0:00:29]} 7. Bd3 {[%emt 0:03:12]} c5 {[%emt 0:00:26]} 8. dxc5 {[%emt 0:02:08]} Bxc5 {[%emt 0:00:43]} 9. O-O {[%emt 0:00:12]} Nc6 {[%emt 0:01:53]} 10. Nbd2 {[%emt 0:02:00]} O-O {[%emt 0:02:41]} 11. Nb3 {[%emt 0:00:50]} Bb6 {[%emt 0:02:13]} 12. c3 {[%emt 0:00:28]} Bd7 {[%emt 0:03:26]} 13. Bc2 {[%emt 0:00:12]} f5 {[%emt 0:12:48]} 14. exf6 {[%emt 0:01:37]} Rxf6 {[%emt 0:01:31]} 15. Qd3 {[%emt 0:00:31]} Rc8 {[%emt 0:15:49]} 16. Rae1 {[%emt 0:04:31]} Qe7 {[%emt 0:17:18]} 17. a4 {[%emt 0:04:58]} a5 {[%emt 0:04:55]} 18. Nbd4 {[%emt 0:13:47]} Bc7 {[%emt 0:10:57]} 19. Qh7+ {[%emt 0:02:31]} Kf7 {[%emt 0:00:59]} 20. Nf5 {[%emt 0:08:01]} Qf8 {[%emt 0:04:40]} 21. N5h4 {[%emt 0:00:10]} Qg8 {[%emt 0:04:18]} 22. Qd3 {[%emt 0:01:10]} g5 {[%emt 0:01:20]} 23. Qe2 {[%emt 0:02:31]} gxh4 {[%emt 0:00:46]} 24. Nxh4 {[%emt 0:00:01]} Qg5 {[%emt 0:00:32]} 25. g3 {[%emt 0:00:09]} Rg8 {[%emt 0:00:49]} 26. Kh1 {[%emt 0:00:28]} Ne7 {[%emt 0:03:30]} 27. c4 {[%emt 0:01:31]} Qg4 {[%emt 0:00:58]} 28. Qd2 {[%emt 0:04:20]} Qxc4 {[%emt 0:00:56]} 29. f4 {[%emt 0:01:18]} Bxa4 {[%emt 0:01:57]} 30. Bd3 {[%emt 0:00:11]} Qc6 {[%emt 0:00:30]} 31. Qe2 {[%emt 0:00:31]} d4+ {[%emt 0:02:36]} 32. Nf3 {[%emt 0:00:12]} Nf5 {[%emt 0:02:14]} 33. Rc1 {[%emt 0:01:06]} Qb6 {[%emt 0:00:54]} 34. Rfe1 {[%emt 0:04:18]} Bc6 {[%emt 0:01:35]} 35. Be4 {[%emt 0:01:42]} Bxe4 {[%emt 0:00:55]} 36. Qxe4 {[%emt 0:00:02]} Rxg3 {[%emt 0:00:39]} 37. Nxd4 {[%emt 0:01:33]} Rg4 {[%emt 0:00:37]} 38. Nxe6 {[%emt 0:02:32]} Qxe6 {[%emt 0:00:22]} 39. Rxc7+ {[%emt 0:00:09]} Ne7 {[%emt 0:00:25]} 40. Rxe7+ {[%emt 0:00:09]} Qxe7 {[%emt 0:00:31]} 41. Qxe7+ {[%emt 0:50:08]} Kg6 {[%emt 0:50:06]} 42. Rg1 {[%emt 0:00:21]} Rxg1+ {[%emt 0:00:35]} 43. Kxg1 {[%emt 0:00:02]} Rxf4 {[%emt 0:00:30]} 44. Qxb7 {[%emt 0:00:17]} Rf5 {[%emt 0:00:22]} 45. Qc6+ {[%emt 0:00:41]} Kg5 {[%emt 0:00:40]} 46. Kg2 {[%emt 0:00:10]} h5 {[%emt 0:00:22]} 47. Qc7 {[%emt 0:00:50]} Kg6 {[%emt 0:00:34]} 48. h4 {[%emt 0:00:23]} Kf6 {[%emt 0:00:00]} 49. Qd6+ {[%emt 0:00:00]} Kf7 {[%emt 0:00:00]} 50. Kg3 {[%emt 0:00:00]} Kg7 {[%emt 0:00:00]} 51. Qe6 {[%emt 0:00:00]} Rf6 {[%emt 0:00:00]} 52. Qe5 {[%emt 0:00:00]} Kf7 {[%emt 0:00:00]} 53. Qxh5+ {[%emt 0:00:00]} Rg6+ {[%emt 0:00:00]} 54. Kf4 {[%emt 0:00:00]} 1-0